Cogmind - Beta 13 @@@ ROGUE MODE // 2024.04.01 @ 23:41:22 Player: fippe Result: Destroyed by BT-ZRN(R) with Subdweller Machine Gun Performance ------------- Evolutions (0) 0 Regions Visited (3) 600 Robots Destroyed (31) 155 Value Destroyed (878) 878 Prototype IDs (2) 40 Alien Tech Used (0) 0 Bonus (175) 175 TOTAL SCORE: 1848 Bonus ------- Follower Combat Kills 175 Cogmind --------- Core Integrity 0/250 Matter 286/300 Energy 200/200 System Corruption 0% Temperature Cool (28) Movement Treading (160) Location -10/Subcaves Parts ------- > --- POWER (1) -------- Subdweller Power Source > --- PROPULSION (2) --- Light Treads > --- UTILITY (2) ------ Signal Interpreter Improved Terrain Scanner > --- WEAPON (2) ------- Subdweller Beam Cannon Barrage Gun > --- INVENTORY (5) ---- Light Nuclear Core Improved Heat Sink Grenade Launcher Peak State ------------ > --- POWER ------------ Light Nuclear Core > --- PROPULSION ------- Light Treads Light Treads > --- UTILITY ---------- Improved Heat Sink Improved Terrain Scanner > --- WEAPON ----------- Particle Gun Particle Gun > --- INVENTORY -------- Ion Engine Structural Scanner Signal Interpreter Grenade Launcher [Rating: 15] Favorites ----------- Power Light Nuclear Core Engine Ion Engine Power Core Light Nuclear Core Propulsion Light Treads Treads Light Treads Leg Aluminum Leg Utility Improved Heat Sink Device Improved Heat Sink Storage Small Storage Unit Processor Signal Interpreter Protection Light Armor Plating Weapon Particle Gun Energy Gun Particle Gun Energy Cannon Beam Cannon Ballistic Gun Barrage Gun Launcher Grenade Launcher Build | -11 -10 -10 -10 ------- Run | Yrd Mat Min Sub Slots Evolved . | . . . . Power . | . . . . Propulsion . | . . . . Utility . | . . . . Weapon . | . . . . Parts Attached 37 | 6 14 7 10 Power 6 | 1 1 2 2 Engine 3 | 1 . 1 1 Core 3 | . 1 1 1 Reactor . | . . . . Propulsion 9 | 2 5 1 1 Treads 7 | 2 3 1 1 Leg 2 | . 2 . . Wheel . | . . . . Hover . | . . . . Flight . | . . . . Utility 8 | 1 3 2 2 Device 4 | . 2 1 1 Storage 1 | 1 . . . Processor 2 | . 1 1 . Hackware . | . . . . Protection 1 | . . . 1 Artifact . | . . . . Weapon 14 | 2 5 2 5 Energy Gun 9 | 2 4 1 2 Energy Cannon 2 | . . 1 1 Ballistic Gun 2 | . 1 . 1 Ballistic Cannon . | . . . . Launcher 1 | . . . 1 Special Weapon . | . . . . Impact Weapon . | . . . . Slashing Weapon . | . . . . Piercing Weapon . | . . . . Special Melee Weapon . | . . . . Unidentified Prototypes . | . . . . Parts Lost 3 | . . . 3 Power . | . . . . Propulsion 2 | . . . 2 Utility . | . . . . Weapon 1 | . . . 1 Highest Loss Streak 2 | . . . 2 To Critical Strikes . | . . . . Average Slot Usage (%) 98 | . 97 100 97 Engine 5 | . 6 5 6 Core 8 | . 7 8 7 Treads 24 | . 16 28 25 Leg 2 | . 11 . . Device 12 | . 10 14 7 Processor 12 | . 11 13 14 Protection 1 | . . . 6 Energy Gun 19 | . 26 20 7 Energy Cannon 6 | . . 7 12 Launcher 1 | . . . 6 Naked Turns . | . . . . Heaviest Build 17 | 14 14 13 17 Greatest Support 40 | 40 40 40 40 Greatest Overweight (x) . | . . . . Average Overweight (x) . | . . . . Largest Inventory Capacity 8 | 8 8 5 5 Average Capacity 5 | 6 5 5 5 Most Carried 6 | 4 6 5 5 Average Carried 4 | 2 4 4 4 Final Capacity 8 | 8 5 5 5 Final Carried 5 | 4 5 5 3 Class Distribution -------------------- 68% | Scavenger-Mutant 31% | Mutant Dominant Class ---------------- Scavenger-Mutant | -10/Materials Scavenger-Mutant | -10/Mines Mutant | -10/Subcaves Resources | -11 -10 -10 -10 ----------- Run | Yrd Mat Min Sub Matter Collected 679 | 199 228 70 182 Remotely . | . . . . Salvage Created 1052 | . 537 201 314 Parts 58 | . 30 9 19 Haulers Intercepted . | . . . . Recyclers Shooed 1 | . 1 . . Parts Field Recycled . | . . . . Retrieved Matter . | . . . . Parts Self-Destructed 10 | . . . 10 Prevented . | . . . . Kills | -11 -10 -10 -10 ------- Run | Yrd Mat Min Sub Combat Hostiles Destroyed 25 | . 11 3 11 Guns 11 | . 8 1 2 Cannons 6 | . . 2 4 AOE 8 | . 3 . 5 Classes Destroyed 6 | . 5 . 1 Builder 1 | . 1 . . Recycler 3 | . 2 1 . Watcher 2 | . 2 . . Swarmer 6 | . 3 . 3 Grunt 11 | . 8 3 . Subdweller 8 | . . . 8 Best Kill Streak 6 | . 6 2 4 Combat Bots Only 5 | . 5 2 4 Max Kills in Single Turn 4 | . 4 1 2 Gunslinging . | . . . . Exploded 3 | . 3 . 2 Melee . | . . . . Uniques/NPCs Destroyed . | . . . . Combat | -11 -10 -10 -10 -------- Run | Yrd Mat Min Sub Hostile Shots Fired 112 | . 50 13 49 Missed 36 | . 15 6 15 Damage Taken 1402 | . 506 142 754 Core 259 | . 56 61 142 Absorbed by Shields . | . . . . Core Remaining (%) 100 | 100 . . . Volleys Fired 88 | . 37 20 31 Largest 2 | . 2 2 2 Hottest 130 | . 115 130 120 Shots Fired 164 | . 70 40 54 Gun 128 | . 70 38 20 Cannon 27 | . . 2 25 Launcher 9 | . . . 9 Special . | . . . . Kinetic 13 | . 9 . 4 Thermal 142 | . 61 40 41 Explosive 9 | . . . 9 Electromagnetic . | . . . . Robot Hit Streak 33 | . 9 9 33 Robot Miss Streak 6 | . 6 1 2 Penetration Max . | . . . . Secondary Targets 2 | . 1 1 . Max Gunslinging Chain 1 | . 1 1 . Shots Hit Robots 86 | . 40 9 37 Core Hits 46 | . 24 4 18 Critical Kills . | . . . . Critical Parts Destroyed . | . . . . Critical Strikes 1 | . 1 . . Burn 1 | . 1 . . Melee Attacks . | . . . . Impact . | . . . . Slashing . | . . . . Piercing . | . . . . Sneak Attacks . | . . . . Combat Hostiles . | . . . . Follow-up Attacks . | . . . . Damage Inflicted 2337 | . 979 148 1210 Guns 1013 | . 555 114 344 Cannons 369 | . . 34 335 Explosions 955 | . 424 . 531 Melee . | . . . . Ramming . | . . . . Kinetic 68 | . 28 . 40 Thermal 1738 | . 951 148 639 Explosive 531 | . . . 531 Electromagnetic . | . . . . Impact . | . . . . Slashing . | . . . . Piercing . | . . . . Highest Corruption . | . . . . Average Corruption . | . . . . Corruption Purged . | . . . . Corruption Blocked . | . . . . Overload Shots . | . . . . Overflow Damage 79 | . 79 . . Projectiles . | . . . . Explosions 79 | . 79 . . Melee . | . . . . Knockbacks . | . . . . Impact . | . . . . Kinetic . | . . . . Secondary . | . . . . Self-Inflicted Damage 150 | . 96 . 54 Shots 4 | . 2 . 2 Rammed . | . . . . Targets Rammed . | . . . . Kicked . | . . . . Crushed . | . . . . Highest Temperature 330 | . 252 330 60 Average Temperature 73 | . 62 108 21 Received Heat Transfer 210 | . 105 57 48 Effects 2 | . 2 . . Interference 2 | . 2 . . Siege Activations . | . . . . Robots Corrupted . | . . . . Combat Hostiles . | . . . . Parts Fried . | . . . . Impact Corruptions . | . . . . Robots Melted . | . . . . Combat Hostiles . | . . . . Parts Melted 4 | . 3 1 . Heat Transferred 3265 | . 1854 333 1078 Parts Sabotaged . | . . . . Parts Stolen . | . . . . Parts Stripped . | . . . . Power Chain Reactions . | . . . . Alert | -11 -10 -10 -10 ------- Run | Yrd Mat Min Sub Peak Influence 355 | . 355 143 . Initial 90 | . . 90 . Average 83 | . 205 34 . Maximum Alert Level 1 | . 1 . . Low Security (%) 81 | 100 37 100 . Level 1 18 | . 62 . . Level 2 . | . . . . Level 3 . | . . . . Level 4 . | . . . . Level 5 . | . . . . High Security . | . . . . Max Security . | . . . . Squads Dispatched 2 | . 2 . . Investigation . | . . . . Extermination . | . . . . Reinforcement 2 | . 2 . . Assault . | . . . . Garrison . | . . . . Intercept . | . . . . Searches Triggered . | . . . . Construction Impeded . | . . . . Haulers Reinforced . | . . . . Active Scanning Responses . | . . . . Cargo Convoy Interrupts . | . . . . Stealth | -11 -10 -10 -10 --------- Run | Yrd Mat Min Sub Distress Signals 3 | . 1 2 . Communications Jammed . | . . . . Distress Signals . | . . . . Times Spotted 38 | . 17 8 13 Peak Tracking Total 6 | . 6 4 3 Tactical Retreats . | . . . . Traps | -11 -10 -10 -10 ------- Run | Yrd Mat Min Sub Traps Triggered 2 | . 2 . . Indirectly . | . . . . Trap Hack Attempts . | . . . . Triggered . | . . . . Disarmed . | . . . . Reprogrammed . | . . . . Reused . | . . . . Traps Extracted . | . . . . Installed . | . . . . Triggered . | . . . . Machines | -11 -10 -10 -10 ---------- Run | Yrd Mat Min Sub Machines Disabled 3 | . 3 . . Max in Single Turn 3 | . 3 . . Machines Repaired . | . . . . Machines Dismantled . | . . . . Machines Sabotaged . | . . . . Overloaded Fab Kills . | . . . . Hacking | -11 -10 -10 -10 --------- Run | Yrd Mat Min Sub Machines Accessed 3 | . 3 . . Terminals 3 | . 3 . . Fabricators . | . . . . Repair Stations . | . . . . Recycling Units . | . . . . Scanalyzers . | . . . . Garrison Access . | . . . . Total Hacks 9 | . 9 . . Successful 4 | . 4 . . Failed 5 | . 5 . . Catastrophic 1 | . 1 . . Database Lockouts . | . . . . Manual . | . . . . Terminals 9 | . 9 . . Fabricators . | . . . . Repair Stations . | . . . . Recycling Units . | . . . . Scanalyzers . | . . . . Garrison Access . | . . . . Terminal Hacks 4 | . 4 . . Prototype ID Bank 1 | . 1 . . Maintenance Status 1 | . 1 . . Reinforcement Status 1 | . 1 . . Hauler Manifests 1 | . 1 . . Fabricator Hacks . | . . . . Repair Station Hacks . | . . . . Recycling Unit Hacks . | . . . . Scanalyzer . | . . . . Garrison Access Hacks . | . . . . Unauthorized Hacks . | . . . . Terminals . | . . . . Fabricators . | . . . . Repair Stations . | . . . . Recycling Units . | . . . . Scanalyzers . | . . . . Garrison Access . | . . . . Data Cores Recovered . | . . . . Used . | . . . . Hacking Detections 2 | . 2 . . Full Trace Events . | . . . . Feedback Events . | . . . . Feedback Blocked . | . . . . Robot Schematics Acquired . | . . . . Robots Built . | . . . . Authchips . | . . . . Time . | . . . . Total Robot Build Rating . | . . . . Part Schematics Acquired . | . . . . Parts Built . | . . . . Authchips . | . . . . Time . | . . . . Total Part Build Rating . | . . . . Parts Repaired . | . . . . Time . | . . . . Parts Recycled . | . . . . Recycled Matter . | . . . . Retrieved Matter . | . . . . Retrieved Components . | . . . . Parts Scanalyzed . | . . . . Part Schematics Acquired . | . . . . Parts Damaged . | . . . . Bothacking | -11 -10 -10 -10 ------------ Run | Yrd Mat Min Sub Used RIF Installer . | . . . . Robots Hacked . | . . . . Non-combat . | . . . . Combat . | . . . . Robot Hacks Applied . | . . . . Relay Couplers Released . | . . . . Fabnet Peak Effective % . | . . . . Robots Rewired . | . . . . Allies Hacked . | . . . . Hacks Repelled . | . . . . Allies | -11 -10 -10 -10 -------- Run | Yrd Mat Min Sub Total Allies 5 | . . 5 . Largest Group 5 | . . 5 . Highest-Rated Group 85 | . . 85 . Highest-Rated Ally 31 | . . 31 . Total Orders . | . . . . Ally Attacks 36 | . . 36 . Total Damage 536 | . . 536 . Kills 7 | . . 7 . Allies Corrupted . | . . . . Allies Melted . | . . . . Intel | -11 -10 -10 -10 ------- Run | Yrd Mat Min Sub Robot Analysis Total . | . . . . Derelict Logs Recovered 2 | . . 2 . Drone Launches . | . . . . Drone Recoveries . | . . . . Exploration | -11 -10 -10 -10 ------------- Run | Yrd Mat Min Sub Turns Passed 3125 | 68 745 1711 601 Spaces Moved 1399 | 38 417 654 290 Core 4 | 4 . . . Treads 1173 | 34 195 654 290 Legs 222 | . 222 . . Wheels . | . . . . Hover . | . . . . Flight . | . . . . Fastest Speed 50 | 50 120 160 160 Average Speed 153 | 148 138 160 160 Slowest Speed 160 | 160 160 160 160 Overloaded Moves . | . . . . Propulsion Burnouts . | . . . . Robots Hopped . | . . . . Cave-ins Triggered . | . . . . Exploration Rate (%) 45 | 4 62 88 28 Regions Visited 3 Branch Regions 2 Pre-discovered Areas 2 | . . 2 . Known Exits Taken 1 | . . 1 . Unknown Exits Taken 2 | 1 1 . . Scrap Searched 1 | . . 1 . Spaces Dug . | . . . . Terrain Destroyed 90 | . 38 . 52 Melee . | . . . . Projectile . | . . . . AOE 90 | . 38 . 52 Terrain Rammed . | . . . . Walls Destroyed . | . . . . Machines Disabled . | . . . . Actions | -11 -10 -10 -10 --------- Run | Yrd Mat Min Sub Total 2215 | 47 516 1280 372 Wait 648 | . 27 588 33 Move 1396 | 37 416 653 290 Hop . | . . . . Pick Up 20 | 4 8 4 4 Fast Attach 12 | 6 4 2 . Attach 3 | . . . 3 Detach 1 | . . 1 . Swap 22 | . 10 5 7 Drop 25 | . 14 7 4 Fire 88 | . 37 20 31 Melee . | . . . . Ram . | . . . . Kick . | . . . . Crush . | . . . . Escape Stasis . | . . . . Rewire . | . . . . Trap . | . . . . Miscellaneous . | . . . . Route ------- -11/Scrapyard -10/Materials (discovered 3 exits: *Mat x2 / [*Min]) -10/Mines (discovered 3 exits: *Mat x2 / *Sub) -10/Subcaves History --------- Turn | Location | Event 22 | -11/Scrapyard | Discovered new exit (range 16) 69 | -11/Scrapyard | Entered Materials 305 | -10/Materials | Build established: Mutant 331 | -10/Materials | Discovered new exit (range 4) 551 | -10/Materials | Discovered new exit (range 3) 715 | -10/Materials | Build established: Scavenger-Mutant 766 | -10/Materials | Discovered new exit (range 5) 814 | -10/Materials | Entered Mines 821 | -10/Mines | Assisted by bots powering up and referring to "LRC-V3" 901 | -10/Mines | Excavation squad dispatched 901 | -10/Mines | A large section of the Mines collapsed 1151 | -10/Mines | Excavation squad dispatched 1401 | -10/Mines | Excavation squad dispatched 1506 | -10/Mines | Learned location of Zion (-7) 1577 | -10/Mines | Joined a pair of Derelicts in attacking an 0b10 outpost 1636 | -10/Mines | Discovered new exit (range 8) 1650 | -10/Mines | Identified exit to Materials 2003 | -10/Mines | Discovered exit to Materials (range 14) 2177 | -10/Mines | Learned Materials stockpile data 2249 | -10/Mines | Learned location of Storage (-7) 2476 | -10/Mines | Discovered new exit (range 5) 2481 | -10/Mines | Identified exit to Subcaves 2525 | -10/Mines | Entered Subcaves 2710 | -10/Subcaves | Ambushed by angry Subdweller bent on revenge 2714 | -10/Subcaves | Core integrity fell below 50% 2819 | -10/Subcaves | Build established: Mutant 2947 | -10/Subcaves | Shifting Twisted Machinery released Barrage Gun 3005 | -10/Subcaves | Core integrity fell below 20% 3126 | -10/Subcaves | Destroyed by BT-ZRN(R) with Subdweller Machine Gun Last Messages --------------- 02797_ Acquired Sub. Laser. 02846_ SF-JQ4(R) destroyed. 02848_ Lgt. Treads destroyed. 02858_ F3-OBE(R) destroyed. 02865_ Dropped Lgt. Nuclear Core. 02865_ Acquired Sub. Power Source. 02870_ Acquired 53 matter. 02872_ Acquired 13 matter. 02875_ Acquired Sub. Beam Cannon. 02884_ Subatomizers dissect the Sub. Monowheel. Barrage Gun falls loose from the Twisted Machinery. 02953_ Dropped Beam Rifle. 02953_ Acquired Barrage Gun. 03021_ Beam Cannon destroyed. 03021_ QP-CUM(R) destroyed. 03029_ Lgt. Treads destroyed. 03030_ 3R-NQB(R) destroyed. 03035_ Acquired 17 matter. 03108_ Dropped Sub. Laser. Map ----- +----------------------------------------------------+ | ????????????????????????????????????????? | | ????????????????????????????????????????? | | ????????????????????????????????????????? | | ????????????????????????????????????????? | | ????????????????????????????????????????? | | ????????????????????????????????????????? | | ????????????????????????????????????????? | | ????????????????????????????????????????? | | ????????????????????????????????????????? | | ????????????????????????????????????????? | | ????????????????????????????????????????? | | ????????????????????????????????????????? | | ????????????????????????????????????????? | | ????????????#???? ??????????????????????? | | ?????????????#?## ??????????????????????? | | ????????????????# ??????????????????????? | | ????????????????# ??????????????????????? | | ????????????????" #????????????????????? | | ??#?????????????" #????????????????????? | | ????????????????" "#????????????????????? | | ????????????????# "##???????????????????? | | ??????????????###"" #???????????????????? | | ???????????????# "" ##??????????????????? | | ???????????????#""R #??????????????????? | | ???????????????##" #??????#???????????? | | ??????????????##@ R ##??????????????????? | | ??????????????# ##??#???????#????????? | | ?????????#????# ##???????#????????????? | | ??????????????## #????????????????????? | | ???????????????# #????????????????????? | | ??????????????###[ #?????#??????????????? | | ?????????#?????# #?????#??????????????? | | ???????????????#" #????????????????????? | | ??????????????### ##????????????????????? | | ???????????????## #???#????????????????? | | ??????????????## ###??????????????????? | | ??????????????# #???????????????????? | | ????#????????## #?????????#?????????? | | ????????????## #???????????????????? | | ????????????# #### #??????????????????? | | ????????????# ##??## #??????????????????? | | ?#??????????# #????? #??????????????????? | | ?????#??????# #???"# #??????????????????? | | ????????????# ##???# #??????????????????? | | ?#??????????# #### #???#??#???????????? | | ????????????# #??????????????????? | | ????????????#### ##????#?#???????????? | | ???????????????# ##????????###????????? | | ???????????????# ######?## ###??????? | | ?????#?????????# ## ## ????????? | +----------------------------------------------------+ Best States ------------- Heat Dissipation 39 Energy Generation 15 Energy Capacity 250 Matter Stores 300 Matter Capacity 300 Sight Range 18 Terrain Scan Range 16 Terrain Scan Density 10 Armor Coverage 150 Evasion (%) 55 Recoil Reduction 2 Item Schematics ----------------- None Robot Schematics ------------------ None Fabricated ------------ Nothing Alien Tech Used ----------------- None Achievements -------------- Shopping List Challenges ------------ None Game ------ Seed PhasingColdTrap Manual? 0 Play Time 00:29:01 Cumulative 9.4 hours Start 2024.04.01 @ 23:08:37 End 2024.04.01 @ 23:41:22 Sessions 1 Manual Loads 0 Difficulty Rogue Special Mode None Game No. 13 Rogue 13 Adventurer 0 Explorer 0 Win Type - Total 0 Types 0/0/0/0/0/0/0/0/0 Lore% 15 Gallery% 17 Achievement% 16 Wizard Run 0 Options --------- Layout 1 ASCII 0 Keyboard 0 Movement Mouse Keybinds 0 Fullscreen 1 Font 24/Smallcaps Map View 50x35 Zoom Use 0% Tactical HUD 1 Map Filters NONE Filters NONE Steam 1 RUN: 1b1c3a67-ce9e-46b2-8c0d-46bb566ea96a